fUST/lending_fUST_20251020
["ID","MTS","AMOUNT","RATE_DAILY","PERIOD"]
[391880866,1760949059349,-200.0,0.00032974,120]
[391880867,1760949059358,-67787.8493571,0.00032988,2]
[391880868,1760949060352,-172.47296786,0.00024552,2]
[391880869,1760949060362,-151.0,0.00024892,7]
[391880870,1760949060371,-157.763202,0.00024892,7]
[391880871,1760949060380,-151.0,0.00024892,7]
[391880872,1760949060390,-157.763202,0.00024892,7]
[391880873,1760949060399,-151.0,0.00024892,7]
[391880874,1760949060408,-151.0,0.00024892,7]
[391880875,1760949060417,-151.0,0.00024892,7]
[391880876,1760949060426,-157.763202,0.00024979,7]
[391880877,1760949060435,-151.0,0.00024979,7]
[391880878,1760949060444,-151.0,0.00024979,7]
[391880879,1760949060453,-157.763202,0.00024979,7]
[391880880,1760949060463,-151.0,0.00024979,7]
[391880881,1760949060472,-157.763202,0.00024979,7]
[391880882,1760949060481,-151.0,0.00024979,7]
[391880883,1760949060490,-151.0,0.00024979,7]
[391880884,1760949060500,-157.763202,0.00024989,7]
[391880885,1760949060508,-151.0,0.00024989,7]
[391880886,1760949060517,-212.610844,0.00024989,7]
[391880887,1760949060526,-157.763202,0.00024989,7]
[391880888,1760949060535,-151.0,0.00024989,7]
[391880889,1760949060544,-157.763202,0.00024989,7]
[391880890,1760949060553,-151.0,0.00024989,7]
[391880891,1760949060562,-151.0,0.00024989,7]
[391880892,1760949060571,-157.763202,0.00025501,7]
[391880893,1760949060580,-151.0,0.00025501,7]
[391880894,1760949060589,-157.763202,0.00025501,7]
[391880895,1760949060598,-151.0,0.00025501,7]
[391880896,1760949060607,-157.763202,0.00025501,7]
[391880897,1760949060617,-151.0,0.00025501,7]
[391880898,1760949060626,-151.0,0.00025501,7]
[391880899,1760949060634,-151.0,0.00025509,7]
[391880900,1760949060643,-157.763202,0.00025509,7]
[391880901,1760949060652,-157.763202,0.00025509,7]
[391880902,1760949060662,-151.0,0.00025509,7]
[391880903,1760949060671,-157.76321,0.00025509,7]
[391880904,1760949060680,-151.0,0.00025509,7]
[391880905,1760949060690,-151.0,0.00025509,7]
[391880906,1760949060700,-354272.77520808,0.00032988,2]
[391880907,1760949060709,-162638.91598084,0.00033,60]
[391880908,1760949060718,-401.25036882,0.00033,30]
[391880909,1760949060727,-1368.153,0.00033,10]
[391880910,1760949060736,-160.0,0.00033,120]
[391880911,1760949060745,-160.0,0.00033,120]
[391880912,1760949060754,-160.0,0.00033,30]
[391880913,1760949060763,-518.878395,0.00033,60]
[391880914,1760949060773,-447.001279,0.00033,60]
[391880915,1760949060783,-150.0,0.00033,2]
[391880916,1760949060792,-31182.93,0.00033,14]
[391880917,1760949060802,-1264.58,0.00033,60]
[391880918,1760949060811,-18765.26169696,0.00033,5]
[391880919,1760949060820,-151.53,0.00033009,60]
[391880920,1760949060829,-755.89034812,0.00033108,2]
[391880921,1760949060838,-151.53,0.00033109,60]
[391880922,1760949060847,-1000.0,0.00033151,5]
[391880923,1760949060857,-673.276799,0.00033165,2]
[391880924,1760949060866,-151.53,0.00033209,60]
[391880925,1760949060876,-159.0,0.00033226,30]
[391880926,1760949060885,-151.53,0.00033309,60]
[391880927,1760949060894,-151.53,0.00033409,60]
[391880928,1760949060903,-1076.49162484,0.00033425,5]
[391880929,1760949060912,-518.878395,0.00033474,60]
[391880930,1760949060922,-447.001279,0.00033474,60]
[391880931,1760949060932,-9114.37572792,0.00033502,2]
[391880932,1760949060942,-151.53,0.00033509,60]
[391880933,1760949060951,-1000.0,0.00033521,5]
[391880934,1760949060961,-2999.0,0.00033561,120]
[391880935,1760949060970,-5383.52,0.000336,14]
[391880936,1760949060979,-151.63,0.00033609,60]
[391880937,1760949060988,-496.24129189,0.00033684,32]
[391880938,1760949060997,-35714.28,0.000337,10]
[391880939,1760949061007,-205.15769069,0.00033773,2]
[391880940,1760949061017,-15000.0,0.000338,60]
[391880941,1760949061026,-150.0,0.000338,2]
[391880942,1760949061036,-1014.45,0.0003382,60]
[391880943,1760949061049,-1000.0,0.00033829,60]
[391880944,1760949061059,-167.74,0.0003383,60]
[391880945,1760949061068,-444.51,0.0003383,30]
[391880946,1760949061078,-600.0,0.0003383,60]
[391880947,1760949061089,-2007.67,0.0003384,60]
[391880948,1760949061099,-338.0,0.0003385,120]
[391880949,1760949061108,-25418.0,0.00033853,30]
[391880950,1760949061118,-318.844544,0.00033853,30]
[391880951,1760949061127,-2000.0,0.00033853,30]
[391880952,1760949061136,-823.099999,0.00033853,30]
[391880953,1760949061146,-2227699.21123098,0.00033853,20]
[391880954,1760949061155,-19668.42440529,0.00033853,30]
[391880955,1760949061165,-26037.62914381,0.00033853,12]
[391880956,1760949061174,-50000.0,0.00033853,30]
[391880957,1760949061185,-50035.2830463,0.00033853,14]
[391880958,1760949061194,-250.0,0.00033853,10]
[391880959,1760949061203,-250.0,0.00033853,10]
[391880960,1760949061212,-250.0,0.00033853,10]
[391880961,1760949061221,-250.0,0.00033853,10]
[391880962,1760949061231,-159.54606359,0.00033853,2]
[391880963,1760949061240,-2025.72835979,0.00033853,30]
[391880964,1760949061250,-518.878395,0.000339,30]
[391880965,1760949061259,-447.001279,0.000339,30]
[391880966,1760949061268,-1045.51535246,0.000339,120]
[391880967,1760949061277,-560.89172555,0.000339,120]
[391880968,1760949061286,-610.50807561,0.000339,120]
[391880969,1760949061295,-1005.25789987,0.00033903,14]
[391880970,1760949061306,-207.0,0.00033904,60]
[391880971,1760949061315,-392.7178133,0.00033923,30]
[391880972,1760949061324,-392.7178133,0.00033923,30]
[391880973,1760949061333,-392.7178133,0.00033923,30]
[391880974,1760949061343,-392.7178133,0.00033923,30]
[391880975,1760949061352,-518.878395,0.00033947,60]
[391880976,1760949061361,-447.001279,0.00033947,60]
[391880977,1760949061371,-155.601027,0.00033947,60]
[391880978,1760949061380,-500.0,0.00034043,60]
[391880979,1760949061389,-200.0,0.0003406,120]
[391880980,1760949061398,-518.878395,0.00034178,15]
[391880981,1760949061408,-447.001279,0.00034178,15]
[391880982,1760949061417,-155.601027,0.00034178,15]
[391880983,1760949061426,-1152.0,0.00034235,2]
[391880984,1760949061437,-2999.0,0.00034246,120]
[391880985,1760949061446,-200.0,0.00034289,120]
[391880986,1760949061455,-153.0,0.00034393,2]
[391880987,1760949061464,-153.0,0.00034393,2]
[391880988,1760949061473,-153.0,0.00034393,2]
[391880989,1760949061482,-153.0,0.00034394,2]
[391880990,1760949061491,-153.0,0.00034394,2]
[391880991,1760949061500,-153.0,0.000344,2]
[391880992,1760949061509,-153.0,0.000344,2]
[391880993,1760949061519,-31182.93,0.000344,14]
[391880994,1760949061528,-518.878395,0.00034421,60]
[391880995,1760949061537,-447.001279,0.00034421,60]
[391880996,1760949061546,-155.601027,0.00034421,60]
[391880997,1760949061555,-518.878395,0.00034457,30]
[391880998,1760949061565,-447.001279,0.00034457,30]
[391880999,1760949061574,-1181.5530201,0.00034489,2]
[391881000,1760949061583,-1800.0,0.000345,120]
[391881001,1760949061593,-830.10084282,0.00034568,30]
[391881002,1760949061602,-150.0,0.00034614,7]
[391881003,1760949061611,-3976.0,0.00034859,3]
[391881004,1760949061620,-5000.0,0.00034882,4]
[391881005,1760949061629,-392.7178133,0.00034882,30]
[391881006,1760949061639,-392.7178133,0.00034882,30]
[391881007,1760949061647,-392.7178133,0.00034882,30]
[391881008,1760949061657,-392.7178133,0.00034882,30]
[391881009,1760949061665,-392.7178133,0.00034882,30]
[391881010,1760949061674,-392.7178133,0.00034882,30]
[391881011,1760949061685,-392.7178133,0.00034882,30]
[391881012,1760949061694,-392.7178133,0.00034882,30]
[391881013,1760949061703,-190.1312825,0.00034882,30]
[391881014,1760949061712,-166.8127699,0.00034882,30]
[391881015,1760949061721,-1172.7588116,0.00034882,30]
[391881016,1760949061730,-190.1312825,0.00034882,30]
[391881017,1760949061740,-298.5517163,0.00034882,30]
[391881018,1760949061749,-153.0,0.00034882,30]
[391881019,1760949061758,-298.5517163,0.00034882,30]
[391881020,1760949061767,-241.9272744,0.00034882,30]
[391881021,1760949061777,-400.0,0.0003489,120]
[391881022,1760949061786,-518.878395,0.00034894,60]
[391881023,1760949061795,-447.001279,0.00034894,60]
[391881024,1760949061805,-156.701888,0.00034894,60]
[391881025,1760949061814,-155.601027,0.00034894,60]
[391881026,1760949061824,-156.701888,0.00034894,60]
[391881027,1760949061832,-1045.51535246,0.000349,120]
[391881028,1760949061841,-560.89172555,0.000349,120]
[391881029,1760949061850,-610.50807561,0.000349,120]
[391881030,1760949061859,-200.0,0.00034917,120]
[391881031,1760949061869,-2999.0,0.00034931,120]
[391881032,1760949061878,-600.0,0.00035,120]
[391881033,1760949061887,-402.9601108,0.00035,120]
[391881034,1760949061896,-160.0,0.00035,120]
[391881035,1760949061906,-160.0,0.00035,120]
[391881036,1760949061915,-5383.52,0.00035,14]
[391881037,1760949061924,-15647.17018587,0.00035,2]
[391881038,1760949061935,-1000.0,0.00035,4]
[391881039,1760949061945,-518.878395,0.00035014,30]
[391881040,1760949061954,-447.001279,0.00035014,30]
[391881041,1760949061964,-155.601027,0.00035014,30]
[391881042,1760949061974,-183.8459268,0.0003507,2]
[391881043,1760949061983,-950.0753,0.0003516,120]
[391881044,1760949061992,-755.89034812,0.00035187,2]
[391881045,1760949062002,-200.0,0.000353,120]
[391881046,1760949062011,-258189.1428,0.00035444,7]
[391881047,1760949062020,-9114.37572792,0.00035487,2]
[391881048,1760949062029,-2000.0,0.000355,120]
[391881049,1760949062038,-518.878395,0.00035571,30]
[391881050,1760949062051,-447.001279,0.00035571,30]
[391881051,1760949062060,-156.701888,0.00035571,30]
[391881052,1760949062070,-155.601027,0.00035571,30]
[391881053,1760949062079,-500.0,0.00035611,7]
[391881054,1760949062088,-2999.0,0.00035616,120]
[391881055,1760949062098,-500.0,0.00035616,120]
[391881056,1760949062107,-500.0,0.00035616,120]
[391881057,1760949062116,-500.0,0.00035616,120]
[391881058,1760949062126,-500.0,0.00035616,120]
[391881059,1760949062135,-500.0,0.00035616,120]
[391881060,1760949062145,-202.128621,0.00035616,120]
[391881061,1760949062154,-595.770279,0.00035704,30]
[391881062,1760949062162,-190.1312825,0.00035704,30]
[391881063,1760949062171,-153.0,0.00035704,30]
[391881064,1760949062181,-190.1312825,0.00035704,30]
[391881065,1760949062192,-153.0,0.00035704,30]
[391881066,1760949062201,-378.628225,0.00035704,30]
[391881067,1760949062211,-153.0,0.00035704,30]
[391881068,1760949062220,-153.0,0.00035704,30]
[391881069,1760949062229,-153.0,0.00035704,30]
[391881070,1760949062238,-1063.7264155,0.00035864,15]
[391881071,1760949062247,-411.0,0.00035956,2]
[391881072,1760949062256,-282848.47034077,0.00036,5]
[391881073,1760949062266,-402.9601108,0.00036,3]
[391881074,1760949062373,-166.14671597,0.00036,30]
[391881075,1760949062383,-157.78465746,0.00036,30]
[391881076,1760949062392,-154.761601,0.00036128,30]
[391881077,1760949062401,-518.878395,0.00036128,30]
[391881078,1760949062410,-447.001279,0.00036128,30]
[391881079,1760949062419,-152.804718,0.00036128,30]
[391881080,1760949062428,-156.701888,0.00036128,30]
[391881081,1760949062439,-155.601027,0.00036128,30]
[391881082,1760949062448,-156.701888,0.00036128,30]
[391881083,1760949062456,-155.601027,0.00036128,30]
[391881084,1760949062466,-152.804718,0.00036128,30]
[391881085,1760949062475,-155.27396,0.00036128,30]
[391881086,1760949062484,-157.78465746,0.00036192,30]
[391881087,1760949062493,-518.878395,0.00036267,15]
[391881088,1760949062502,-447.001279,0.00036267,15]
[391881089,1760949062511,-156.701888,0.00036267,15]
[391881090,1760949062521,-155.601027,0.00036267,15]
[391881091,1760949062530,-200.0,0.000363,120]
[391881092,1760949062539,-31182.93,0.000363,14]
[391881093,1760949062547,-2999.0,0.00036301,120]
[391881094,1760949062557,-250.16525177,0.0003637,16]
[391881095,1760949062566,-166.14671597,0.00036384,30]
[391881096,1760949062575,-157.78465746,0.00036384,30]
[391881097,1760949062584,-2000.0,0.000365,120]
[391881098,1760949062593,-379.7328166,0.00036526,30]
[391881099,1760949062602,-153.0,0.00036526,30]
[391881100,1760949062611,-153.0,0.00036526,30]
[391881101,1760949062620,-200.0,0.00036534,120]
[391881102,1760949062629,-155.0,0.00036549,30]
[391881103,1760949062638,-5000.0,0.00036556,54]
[391881104,1760949062647,-197.4128498,0.00036574,30]
[391881105,1760949062656,-157.78465746,0.00036575,30]
[391881106,1760949062666,-1499956.38879281,0.0003663,3]
[391881107,1760949062675,-800.0,0.00036636,7]
[391881108,1760949062686,-166.14671597,0.00036767,30]
[391881109,1760949062695,-157.78465746,0.00036767,30]
[391881110,1760949062704,-200.0,0.00036934,120]
[391881111,1760949062713,-157.78465746,0.00036959,30]
[391881112,1760949062722,-2999.0,0.00036986,120]
[391881113,1760949062731,-417.564338,0.00037053,2]
[391881114,1760949062740,-1613.0,0.00037094,2]
[391881115,1760949062749,-166.14671597,0.00037151,30]
[391881116,1760949062759,-157.78465746,0.00037151,30]
[391881117,1760949062767,-200.0,0.00037181,120]
[391881118,1760949062777,-4000.0,0.000372,10]
[391881119,1760949062786,-205.94857348,0.00037247,7]
[391881120,1760949062795,-755.89034812,0.00037265,2]
[391881121,1760949062804,-200.0,0.0003727,120]
[391881122,1760949062814,-200.0,0.000373,120]
[391881123,1760949062823,-157.78465746,0.00037342,30]
[391881124,1760949062833,-250.0,0.000374,14]
[391881125,1760949062842,-250.0,0.000374,14]
[391881126,1760949062851,-250.0,0.000374,14]
[391881127,1760949062861,-250.0,0.000374,14]
[391881128,1760949062870,-168.8,0.000374,14]
[391881129,1760949062880,-277.0,0.000374,12]
[391881130,1760949062890,-600.0,0.0003744,2]
[391881131,1760949062899,-248484.329,0.00037444,7]
[391881132,1760949062908,-69978.6050423,0.00037444,7]
[391881134,1760949186676,929.86290559,0.00033853,120]
[391881137,1760949284689,9462.56172229,0.00024141,2]
[391881138,1760949284711,537.43827771,0.00024141,2]
[391881139,1760949293199,151.0,0.000218,4]
[391881140,1760949293520,151.0,0.000191,2]
[391881141,1760949293918,151.0,0.000164,2]
[391881142,1760949294430,151.0,0.000137,2]
[391881143,1760949294607,151.0,0.00011,2]
[391881144,1760949298398,8707.57172229,0.00024141,2]
[391881145,1760949298420,1292.42827771,0.00024141,2]
[391881146,1760949309870,8707.58172229,0.00024141,2]
[391881147,1760949309892,1292.41827771,0.00024141,2]
[391881148,1760949329835,300.0,0.000241,2]
[391881149,1760949331054,8407.59172229,0.00024141,2]
[391881150,1760949346437,-1592.40827771,0.00024141,2]
[391881151,1760949352533,6815.19344458,0.00021,10]
[391881152,1760949352556,3184.80655542,0.00021,10]
[391881153,1760949354279,150.0,0.00020109,2]
[391881154,1760949354682,291.86,0.00021067,2]
[391881155,1760949355101,437.79,0.00022024,2]
[391881156,1760949356124,583.72,0.00022982,2]
[391881157,1760949356568,729.65,0.00023939,2]
[391881158,1760949363224,4622.18344458,0.00021,10]
[391881159,1760949363246,5377.81655542,0.00021,10]
[391881160,1760949375157,4622.19344458,0.00021,10]
[391881161,1760949375178,5377.80655542,0.00021,10]
[391881162,1760949400598,4622.20344458,0.00024141,2]
[391881163,1760949400620,5377.79655542,0.00024141,2]
[391881164,1760949414201,4622.21344458,0.00024141,2]
[391881165,1760949414224,5377.78655542,0.00024141,2]
[391881166,1760949416940,196.0,0.00018,2]
[391881167,1760949417141,196.0,0.00018006,2]
[391881168,1760949417325,196.0,0.00018013,2]
[391881169,1760949417518,196.0,0.00018019,2]
[391881170,1760949417699,196.0,0.00018025,2]
[391881171,1760949418159,196.0,0.00018031,2]
[391881172,1760949418190,196.0,0.00018038,2]
[391881173,1760949418281,196.0,0.00018044,2]
[391881174,1760949418467,196.0,0.0001805,2]
[391881175,1760949418647,196.0,0.00018056,2]
[391881176,1760949418816,196.0,0.00018063,2]
[391881177,1760949419001,196.0,0.00018069,2]
[391881178,1760949419182,196.0,0.00018075,2]
[391881179,1760949419376,196.0,0.00018081,2]
[391881180,1760949419554,196.0,0.00018088,2]
[391881181,1760949420007,196.0,0.00018094,2]
[391881182,1760949420195,236.91053521,0.000181,2]
[391881183,1760949433003,1249.31290937,0.00024141,2]
[391881184,1760949433030,8750.68709063,0.00024141,2]
[391881185,1760949434463,150.0,0.00020093,2]
[391881186,1760949434878,286.94,0.0002105,2]
[391881187,1760949435304,430.41,0.00022007,2]
[391881188,1760949435927,381.97290937,0.00022963,2]
[391881189,1760949435965,191.91709063,0.00022963,2]
[391881190,1760949436146,717.36,0.0002392,2]
[391881191,1760949440405,417.15472785,0.00024141,2]
[391881192,1760949449132,1116.45,0.00024,19]
[391881193,1760949455487,161.0,9.3e-07,2]
[391881194,1760949464086,1000.0,0.00024,49]
[391881195,1760949469147,1000.0,0.00024,49]
[391881196,1760949470359,1000.0,0.00024,49]
[391881197,1760949479128,4396.12818152,0.00024141,2]
[391881198,1760949479150,5603.87181848,0.00024141,2]
[391881199,1760949483930,4155.46019969,0.00024141,2]
[391881201,1760949492372,240.67798183,0.00024141,2]
[391881202,1760949492395,4759.32201817,0.00024141,2]
[391881203,1760949495053,5240.68798183,0.00024141,2]
[391881204,1760949495074,4759.31201817,0.00024141,2]
[391881205,1760949510149,5240.69798183,0.00024141,2]
[391881206,1760949512959,150.0,0.00020087,2]
[391881207,1760949513367,268.91,0.00021043,2]
[391881208,1760949514287,403.37,0.00022,2]
[391881209,1760949514776,537.83,0.00022956,2]
[391881210,1760949515231,672.28,0.00023913,2]
[391881211,1760949515271,5000.0,0.00024141,2]
[391881212,1760949516294,1407.10333586,0.00033834,60]
[391881213,1760949518281,-4759.30201817,0.00024141,2]
[391881214,1760949523199,481.40596366,0.00024141,2]
[391881215,1760949523219,2932.6305706,0.00024141,2]
[391881216,1760949538479,5000.0,0.00024141,2]
[391881217,1760949542385,2067.3794294,0.00022853,2]
[391881218,1760949542405,280.84023261,0.00022853,2]
[391881219,1760949561572,5000.0,0.00024141,2]
[391881220,1760949584146,4719.16976739,0.00024141,2]
[391881221,1760949584168,280.83023261,0.00024141,2]
[391881222,1760949592914,173.63,0.00020067,2]
[391881223,1760949593358,347.26,0.00021023,2]
[391881224,1760949593780,520.89,0.00021978,2]
[391881225,1760949594237,694.52,0.00022934,2]
[391881226,1760949594660,868.15,0.00023889,2]
[391881227,1760949607483,5000.0,0.00024141,2]
[391881228,1760949630518,1746.09337514,0.00024141,2]
[391881229,1760949672515,150.0,0.00020056,2]
[391881230,1760949672944,218.63639225,0.00021012,2]
[391881231,1760949672973,62.33360775,0.00021012,2]
[391881232,1760949673368,421.45,0.00021967,2]
[391881233,1760949673788,561.93,0.00022922,2]
[391881234,1760949674196,702.41,0.00023877,2]
[391881244,1760949752438,150.0,0.00020071,2]
[391881245,1760949752855,227.08,0.00021027,2]
[391881246,1760949753292,340.63,0.00021983,2]
[391881247,1760949753703,454.17,0.00022938,2]
[391881248,1760949754116,567.71,0.00023894,2]
[391881250,1760949832759,150.0,0.00020146,2]
[391881251,1760949833208,182.8,0.00021105,2]
[391881252,1760949833640,274.21,0.00022065,2]
[391881253,1760949834051,365.61,0.00023024,2]
[391881254,1760949834612,457.01,0.00023983,2]
[391881256,1760949911322,150.0,0.00020077,2]
[391881257,1760949911802,150.0,0.00021033,2]
[391881258,1760949912197,219.62,0.00021989,2]
[391881259,1760949912617,292.83,0.00022945,2]
[391881260,1760949913029,366.03,0.00023901,2]
[391881261,1760949991486,150.0,0.00020089,2]
[391881262,1760949991893,150.0,0.00021045,2]
[391881263,1760949992336,174.62,0.00022002,2]
[391881264,1760949992734,232.83,0.00022959,2]
[391881265,1760949993146,291.04,0.00023915,2]
[391881266,1760950069598,150.0,0.00020071,2]
[391881267,1760950069974,150.0,0.00021026,2]
[391881268,1760950070407,150.0,0.00021982,2]
[391881269,1760950070824,182.0,0.00022938,2]
[391881270,1760950071261,227.5,0.00023893,2]
[391881271,1760950122392,417.15472785,0.00024141,2]
[391881272,1760950143799,150.0,0.00020038,2]
[391881273,1760950144225,150.0,0.00020992,2]
[391881274,1760950144649,150.0,0.00021946,2]
[391881275,1760950145079,150.0,0.00022901,2]
[391881276,1760950145509,172.8,0.00023855,2]
[391881453,1760950218381,150.0,0.00020347,2]
[391881454,1760950218808,150.0,0.00021315,2]
[391881455,1760950219312,150.0,0.00022284,2]
[391881456,1760950219737,150.0,0.00023253,2]
[391881514,1760950238467,-150.0,0.00024222,2]
[391881515,1760950238476,-151.0,0.000245,7]
[391881516,1760950238486,-150.0,0.000245,2]
[391881517,1760950238495,-287.19422307,0.00024691,2]
[391881518,1760950238519,-239.69050946,0.00024691,2]
[391881519,1760950238529,-224.2164541,0.00024692,2]
[391881520,1760950238539,-1200.0,0.0002477,2]
[391881521,1760950238548,-300.0,0.0002477,2]
[391881522,1760950238558,-300.0,0.0002477,2]
[391881523,1760950238567,-300.0,0.0002477,2]
[391881524,1760950238577,-300.0,0.0002477,2]
[391881525,1760950238587,-300.0,0.0002477,2]
[391881526,1760950238597,-1200.0,0.0002477,2]
[391881527,1760950238606,-500.0,0.00024773,2]
[391881528,1760950238616,-500.0,0.00024773,2]
[391881529,1760950238626,-500.0,0.00024773,2]
[391881530,1760950238636,-500.0,0.00024773,2]
[391881531,1760950238646,-500.0,0.00024773,2]
[391881532,1760950238656,-502.14059009,0.00024773,2]
[391881533,1760950238665,-379.77643342,0.00024773,2]
[391881534,1760950238675,-500.0,0.00024773,2]
[391881535,1760950238685,-500.0,0.00024773,2]
[391881536,1760950238695,-500.0,0.00024773,2]
[391881537,1760950238704,-500.0,0.00024773,2]
[391881538,1760950238715,-500.0,0.00024773,2]
[391881539,1760950238725,-500.0,0.00024773,2]
[391881540,1760950238735,-500.0,0.00024781,2]
[391881541,1760950238744,-2134.58,0.00024782,3]
[391881542,1760950238754,-1067.29,0.00024782,3]
[391881543,1760950238764,-533.64,0.00024782,3]
[391881544,1760950238774,-266.82,0.00024782,3]
[391881545,1760950238783,-800.51,0.00024782,3]
[391881546,1760950238793,-521.46,0.00024782,10]
[391881547,1760950238803,-3000.0,0.0002479,2]
[391881548,1760950238813,-500.0,0.0002479,2]
[391881549,1760950238823,-500.0,0.0002479,2]
[391881550,1760950238833,-500.0,0.00024791,2]
[391881551,1760950238842,-500.0,0.00024791,2]
[391881552,1760950238851,-500.0,0.00024791,2]
[391881553,1760950238860,-500.0,0.00024791,2]
[391881554,1760950238869,-500.0,0.00024791,2]
[391881555,1760950238879,-500.0,0.00024791,2]
[391881556,1760950238888,-500.0,0.00024791,2]
[391881557,1760950238898,-473.78928526,0.00024791,2]
[391881558,1760950238907,-183.69613348,0.00024791,2]
[391881559,1760950238917,-504.7612004,0.00024791,2]
[391881560,1760950238926,-500.0,0.00024791,2]
[391881561,1760950238941,-241.26834262,0.00024791,2]
[391881562,1760950238950,-193.92749866,0.00024791,2]
[391881563,1760950238961,-392.34168407,0.00024791,2]
[391881564,1760950238970,-500.0,0.00024791,2]
[391881565,1760950238980,-500.0,0.00024791,2]
[391881566,1760950238990,-500.0,0.00024791,2]
[391881567,1760950239000,-500.0,0.00024791,2]
[391881568,1760950239010,-500.0,0.00024791,2]
[391881569,1760950239020,-500.0,0.00024791,2]
[391881570,1760950239030,-500.0,0.00024791,2]
[391881571,1760950239040,-233.94051358,0.00024791,2]
[391881572,1760950239050,-500.0,0.00024791,2]
[391881573,1760950239060,-500.0,0.00024791,2]
[391881574,1760950239070,-500.0,0.00024791,2]
[391881575,1760950239080,-500.0,0.00024791,2]
[391881576,1760950239091,-500.0,0.00024791,2]
[391881577,1760950239102,-500.0,0.00024791,2]
[391881578,1760950239112,-500.0,0.00024791,2]
[391881579,1760950239121,-500.0,0.00024791,2]
[391881580,1760950239130,-500.0,0.00024791,2]
[391881581,1760950239139,-500.0,0.00024791,2]
[391881582,1760950239148,-500.0,0.00024791,2]
[391881583,1760950239157,-500.0,0.00024791,2]
[391881584,1760950239166,-500.0,0.00024791,2]
[391881585,1760950239175,-500.0,0.00024791,2]
[391881586,1760950239185,-500.0,0.00024791,2]
[391881587,1760950239195,-500.0,0.00024791,2]
[391881588,1760950239206,-500.0,0.00024791,2]
[391881589,1760950239216,-500.0,0.00024791,2]
[391881591,1760950239226,-500.0,0.00024791,2]
[391881592,1760950239236,-500.0,0.00024791,2]
[391881593,1760950239246,-500.0,0.00024791,2]
[391881594,1760950239256,-500.0,0.00024791,2]
[391881595,1760950239266,-500.0,0.00024791,2]
[391881596,1760950239276,-500.0,0.00024791,2]
[391881597,1760950239285,-251.00604647,0.00024791,2]
[391881598,1760950239297,-284.09323783,0.00024791,2]
[391881599,1760950239307,-500.0,0.00024791,2]
[391881600,1760950239316,-500.0,0.00024791,2]
[391881601,1760950239326,-500.0,0.00024791,2]
[391881602,1760950239337,-500.0,0.00024791,2]
[391881603,1760950239347,-500.0,0.00024791,2]
[391881604,1760950239357,-500.0,0.00024791,2]
[391881605,1760950239367,-500.0,0.00024791,2]
[391881606,1760950239377,-500.0,0.00024791,2]
[391881607,1760950239386,-500.0,0.00024791,2]
[391881608,1760950239397,-500.0,0.00024791,2]
[391881609,1760950239406,-500.0,0.00024791,2]
[391881610,1760950239417,-500.0,0.00024791,2]
[391881611,1760950239427,-500.0,0.00024791,2]
[391881612,1760950239437,-500.0,0.00024791,2]
[391881613,1760950239447,-500.0,0.00024791,2]
[391881614,1760950239457,-500.0,0.00024791,2]